Cogmind - Beta 15 @@@ ROGUE MODE // 2025.06.06 @ 17:47:43 // Winter2019/RPGLIKE Player: Jack Result: Destroyed by G-50 Soldier with Heavy Laser Performance ------------- Evolutions (2) 1000 Regions Visited (5) 1000 Robots Destroyed (11) 55 Value Destroyed (206) 206 Prototype IDs (0) 0 Alien Tech Used (0) 0 Bonus (0) 0 TOTAL SCORE: 2261 Bonus ------- None Cogmind --------- Core Integrity 0/600 Matter 283/300 Energy 100/100 System Corruption 0% Temperature Cool (9) Movement Flying (37) Location -8/Materials Parts ------- > --- POWER (1) -------- (None) > --- PROPULSION (2) --- Flight Unit Flight Unit > --- UTILITY (1) ------ (None) > --- WEAPON (2) ------- Light Assault Rifle Light Assault Rifle > --- INVENTORY (0) ---- (None) Peak State ------------ > --- POWER ------------ Light Ion Engine > --- PROPULSION ------- Flight Unit Flight Unit > --- UTILITY ---------- (None) > --- WEAPON ----------- Light Assault Rifle Light Assault Rifle > --- INVENTORY -------- (None) [Rating: 5] Favorites ----------- Power Light Ion Engine Engine Light Ion Engine Propulsion Flight Unit Flight Unit Flight Unit Utility None Weapon Light Assault Rifle Energy Gun Small Laser Ballistic Gun Light Assault Rifle Build | -11 -10 -10 -9 -9 -8 ------- Run | Yrd Mat Min Mat Min Mat Slots Evolved 2 | 2 . . . . . Power . | . . . . . . Propulsion 1 | 1 . . . . . Utility . | . . . . . . Weapon 1 | 1 . . . . . Parts Attached 10 | 2 . 3 3 2 . Power 1 | . . . 1 . . Engine 1 | . . . 1 . . Core . | . . . . . . Reactor . | . . . . . . Propulsion 5 | . . 2 2 1 . Treads . | . . . . . . Leg . | . . . . . . Wheel . | . . . . . . Hover . | . . . . . . Flight 5 | . . 2 2 1 . Utility . | . . . . . . Device . | . . . . . . Storage . | . . . . . . Processor . | . . . . . . Hackware . | . . . . . . Protection . | . . . . . . Artifact . | . . . . . . Weapon 4 | 2 . 1 . 1 . Energy Gun 1 | 1 . . . . . Energy Cannon . | . . . . . . Ballistic Gun 3 | 1 . 1 . 1 . Ballistic Cannon . | . . . . . . Launcher . | . . . . . . Special Weapon . | . . . . . . Impact Weapon . | . . . . . . Slashing Weapon . | . . . . . . Piercing Weapon . | . . . . . . Special Melee Weapon . | . . . . . . Unidentified Prototypes . | . . . . . . Parts Lost 1 | . . . . . 1 Power 1 | . . . . . 1 Propulsion . | . . . . . . Utility . | . . . . . . Weapon . | . . . . . . Highest Loss Streak 1 | . . . . . 1 To Critical Strikes . | . . . . . . Average Backups . | . . . . . . Power . | . . . . . . Propulsion . | . . . . . . Utility . | . . . . . . Weapon . | . . . . . . Tool/Special . | . . . . . . Unused Backups . | . . . . . . Power . | . . . . . . Propulsion . | . . . . . . Utility . | . . . . . . Weapon . | . . . . . . Tool/Special . | . . . . . . Average Slot Usage (%) 71 | . 33 50 69 83 79 Engine 10 | . . . 3 16 13 Flight 27 | . . 17 33 33 33 Energy Gun 2 | . 16 8 . . . Ballistic Gun 30 | . 16 24 33 33 33 Peak Build Rating 5 | 2 2 4 5 5 5 Average Rating 4 | 1 2 3 4 5 4 On Entrance 3 | . 2 2 4 5 5 Naked Turns . | . . . . . . Heaviest Build 5 | 2 2 2 5 5 5 Greatest Support 8 | 3 3 8 8 8 8 Greatest Overweight (x) . | . . . . . . Average Overweight (x) . | . . . . . . Largest Inventory Capacity . | . . . . . . Average Capacity . | . . . . . . Most Carried . | . . . . . . Average Carried . | . . . . . . Final Capacity . | . . . . . . Final Carried . | . . . . . . Class Distribution -------------------- 65% | Scavenger-Mutant 34% | Mutant Dominant Class ---------------- Mutant | -10/Materials Mutant | -10/Mines Mutant | -9/Materials Scavenger-Mutant | -9/Mines Scavenger-Mutant | -8/Materials Resources | -11 -10 -10 -9 -9 -8 ----------- Run | Yrd Mat Min Mat Min Mat Matter Collected 381 | . . 283 . 86 12 Remotely . | . . . . . . Salvage Created 309 | . . 165 23 47 74 Parts 24 | . . 9 4 5 6 Haulers Intercepted . | . . . . . . Recyclers Shooed . | . . . . . . Parts Field Recycled . | . . . . . . Retrieved Matter . | . . . . . . Parts Self-Destructed . | . . . . . . Prevented . | . . . . . . Kills | -11 -10 -10 -9 -9 -8 ------- Run | Yrd Mat Min Mat Min Mat Combat Hostiles Destroyed 11 | . . 5 2 3 1 Guns 11 | . . 5 2 3 1 Classes Destroyed 3 | . . 2 . . 1 Swarmer 8 | . . 3 2 3 . Grunt 2 | . . 2 . . . Sentry 1 | . . . . . 1 Best Kill Streak 3 | . . 3 2 2 1 Combat Bots Only 3 | . . 3 2 2 1 Max Kills in Single Turn 1 | . . 1 1 1 1 Gunslinging . | . . . . . . Exploded . | . . . . . . Melee . | . . . . . . Uniques/NPCs Destroyed . | . . . . . . Combat | -11 -10 -10 -9 -9 -8 -------- Run | Yrd Mat Min Mat Min Mat Hostile Shots Fired 100 | . . 39 8 30 23 Missed 35 | . . 12 5 10 8 Hits 65 | . . 27 3 20 15 Projectile 65 | . . 27 3 20 15 AOE 1 | . . . . 1 . Damage Taken 795 | . . 300 29 201 265 Core 674 | . . 263 21 167 223 Absorbed by Shields . | . . . . . . Redirected to Core 417 | . . 124 21 116 156 Core Remaining (%) 63 | 100 . 56 . 34 . Volleys Fired 54 | . . 19 4 14 17 Largest 2 | . . 2 2 2 2 Hottest 60 | . . 60 40 40 40 Shots Fired 108 | . . 38 8 28 34 Gun 108 | . . 38 8 28 34 Cannon . | . . . . . . Launcher . | . . . . . . Special . | . . . . . . Kinetic 103 | . . 33 8 28 34 Thermal 5 | . . 5 . . . Explosive . | . . . . . . Electromagnetic . | . . . . . . Robot Hit Streak 12 | . . 12 2 4 7 Robot Miss Streak 4 | . . 3 3 4 2 Penetration Max . | . . . . . . Secondary Targets 1 | . . 1 . . . Max Gunslinging Chain 1 | . . 1 . . . Shots Hit Robots 75 | . . 29 3 17 26 Core Hits 26 | . . 9 2 6 9 Critical Kills . | . . . . . . Critical Parts Destroyed 1 | . . . . . 1 Critical Strikes 1 | . . . . . 1 Destroy 1 | . . . . . 1 Melee Attacks . | . . . . . . Impact . | . . . . . . Slashing . | . . . . . . Piercing . | . . . . . . Sneak Attacks . | . . . . . . Combat Hostiles . | . . . . . . Follow-up Attacks . | . . . . . . Damage Inflicted 612 | . . 246 26 135 205 Guns 612 | . . 246 26 135 205 Cannons . | . . . . . . Explosions . | . . . . . . Melee . | . . . . . . Ramming . | . . . . . . Kinetic 580 | . . 214 26 135 205 Thermal 32 | . . 32 . . . Explosive . | . . . . . . Electromagnetic . | . . . . . . Impact . | . . . . . . Slashing . | . . . . . . Piercing . | . . . . . . Highest Corruption . | . . . . . . Average Corruption . | . . . . . . Corruption Purged . | . . . . . . Corruption Blocked . | . . . . . . Overload Shots . | . . . . . . Overflow Damage . | . . . . . . Projectiles . | . . . . . . Explosions . | . . . . . . Melee . | . . . . . . Knockbacks . | . . . . . . Impact . | . . . . . . Kinetic . | . . . . . . Secondary . | . . . . . . Self-Inflicted Damage . | . . . . . . Shots . | . . . . . . Rammed . | . . . . . . Targets Rammed . | . . . . . . Kicked . | . . . . . . Crushed . | . . . . . . Highest Temperature 29 | . . 10 . 8 29 Average Temperature 6 | . . 5 . 4 10 Received Heat Transfer 231 | . . 123 . . 108 Siege Activations . | . . . . . . Martial Activations . | . . . . . . Shielding Activations . | . . . . . . Robots Disrupted . | . . . . . . Combat Hostiles . | . . . . . . Robots Corrupted . | . . . . . . Combat Hostiles . | . . . . . . Parts Fried . | . . . . . . Impact Corruptions . | . . . . . . Robots Melted . | . . . . . . Combat Hostiles . | . . . . . . Parts Melted . | . . . . . . Heat Transferred 75 | . . 75 . . . Parts Sabotaged . | . . . . . . Parts Stolen . | . . . . . . Parts Stripped . | . . . . . . Power Chain Reactions . | . . . . . . Alert | -11 -10 -10 -9 -9 -8 ------- Run | Yrd Mat Min Mat Min Mat Maximum Alert Level . | . . . . . . Low Security (%) 100 | 100 100 100 100 100 100 Level 1 . | . . . . . . Level 2 . | . . . . . . Level 3 . | . . . . . . Level 4 . | . . . . . . Level 5 . | . . . . . . High Security . | . . . . . . Max Security . | . . . . . . Peak Influence 125 | . 15 125 114 110 30 Initial 44 | . . 1 44 40 . Average 42 | . 5 71 84 34 10 Influence Increases 435 | . 15 195 80 100 45 Destroy 0b10 Robot/C 220 | . . 100 40 60 20 Destroy Leader 50 | . . 20 10 10 10 Partial Spotted 30 | . 15 . . . 15 Lose Combat Pursuer 135 | . . 75 30 30 . Influence Decreases 435 | . 10 85 91 204 45 Entered New Map 139 | . . 4 71 64 . Time Decay 286 | . 10 81 20 140 35 Lost Part 10 | . . . . . 10 Squads Dispatched 3 | . . . 1 . 2 Investigation . | . . . . . . Extermination . | . . . . . . Reinforcement 3 | . . . 1 . 2 Assault . | . . . . . . Garrison . | . . . . . . Intercept . | . . . . . . Searches Triggered . | . . . . . . Construction Impeded . | . . . . . . Haulers Reinforced . | . . . . . . Active Scanning Responses . | . . . . . . Cargo Convoy Interrupts . | . . . . . . Stealth | -11 -10 -10 -9 -9 -8 --------- Run | Yrd Mat Min Mat Min Mat Distress Signals 1 | . . . 1 . . Communications Jammed . | . . . . . . Distress Signals . | . . . . . . Times Spotted 44 | . 1 9 6 22 6 Peak Tracking Total 20 | . 1 5 6 20 5 Tactical Retreats 5 | . . 3 1 1 . Traps | -11 -10 -10 -9 -9 -8 ------- Run | Yrd Mat Min Mat Min Mat Traps Triggered . | . . . . . . Indirectly . | . . . . . . Trap Hack Attempts . | . . . . . . Triggered . | . . . . . . Disarmed . | . . . . . . Reprogrammed . | . . . . . . Reused . | . . . . . . Traps Extracted . | . . . . . . Installed . | . . . . . . Triggered . | . . . . . . Machines | -11 -10 -10 -9 -9 -8 ---------- Run | Yrd Mat Min Mat Min Mat Machines Disabled . | . . . . . . Max in Single Turn . | . . . . . . Machines Repaired . | . . . . . . Machines Dismantled . | . . . . . . Machines Sabotaged . | . . . . . . Overloaded Fab Kills . | . . . . . . Hacking | -11 -10 -10 -9 -9 -8 --------- Run | Yrd Mat Min Mat Min Mat Machines Accessed . | . . . . . . Terminals . | . . . . . . Fabricators . | . . . . . . Repair Stations . | . . . . . . Recycling Units . | . . . . . . Scanalyzers . | . . . . . . Garrison Access . | . . . . . . Total Hacks . | . . . . . . Successful . | . . . . . . Failed . | . . . . . . Catastrophic . | . . . . . . Database Lockouts . | . . . . . . Manual . | . . . . . . Terminals . | . . . . . . Fabricators . | . . . . . . Repair Stations . | . . . . . . Recycling Units . | . . . . . . Scanalyzers . | . . . . . . Garrison Access . | . . . . . . Terminal Hacks . | . . . . . . Fabricator Hacks . | . . . . . . Repair Station Hacks . | . . . . . . Recycling Unit Hacks . | . . . . . . Scanalyzer . | . . . . . . Garrison Access Hacks . | . . . . . . Unauthorized Hacks . | . . . . . . Terminals . | . . . . . . Fabricators . | . . . . . . Repair Stations . | . . . . . . Recycling Units . | . . . . . . Scanalyzers . | . . . . . . Garrison Access . | . . . . . . Data Cores Recovered . | . . . . . . Used . | . . . . . . Hacking Detections . | . . . . . . Full Trace Events . | . . . . . . Feedback Events . | . . . . . . Feedback Blocked . | . . . . . . Robot Schematics Acquired . | . . . . . . Robots Built . | . . . . . . Authchips . | . . . . . . Time . | . . . . . . Total Robot Build Rating . | . . . . . . Part Schematics Acquired . | . . . . . . Parts Built . | . . . . . . Authchips . | . . . . . . Time . | . . . . . . Total Part Build Rating . | . . . . . . Parts Repaired . | . . . . . . Time . | . . . . . . Parts Recycled . | . . . . . . Recycled Matter . | . . . . . . Retrieved Matter . | . . . . . . Retrieved Components . | . . . . . . Parts Scanalyzed . | . . . . . . Part Schematics Acquired . | . . . . . . Parts Damaged . | . . . . . . Bothacking | -11 -10 -10 -9 -9 -8 ------------ Run | Yrd Mat Min Mat Min Mat Used RIF Installer . | . . . . . . Robots Hacked . | . . . . . . Non-combat . | . . . . . . Combat . | . . . . . . Robot Hacks Applied . | . . . . . . Relay Couplers Released . | . . . . . . Fabnet Peak Effective % . | . . . . . . Robots Rewired . | . . . . . . Allies Hacked . | . . . . . . Hacks Repelled . | . . . . . . Allies | -11 -10 -10 -9 -9 -8 -------- Run | Yrd Mat Min Mat Min Mat Total Allies . | . . . . . . Largest Group . | . . . . . . Highest-Rated Group . | . . . . . . Highest-Rated Ally . | . . . . . . Total Orders . | . . . . . . Ally Attacks . | . . . . . . Total Damage . | . . . . . . Kills . | . . . . . . Allies Corrupted . | . . . . . . Allies Melted . | . . . . . . Intel | -11 -10 -10 -9 -9 -8 ------- Run | Yrd Mat Min Mat Min Mat Active Infowar (turns) . | . . . . . . Robot Analysis Total . | . . . . . . Derelict Logs Recovered 2 | . . 1 . 1 . Drone Launches . | . . . . . . Drone Recoveries . | . . . . . . Exploration | -11 -10 -10 -9 -9 -8 ------------- Run | Yrd Mat Min Mat Min Mat Turns Passed 892 | 13 31 226 41 483 98 Spaces Moved 718 | 20 62 322 58 208 48 Core 226 | 20 62 144 . . . Treads . | . . . . . . Legs . | . . . . . . Wheels . | . . . . . . Hover . | . . . . . . Flight 492 | . . 178 58 208 48 Fastest Speed 37 | 50 50 37 37 37 37 Average Speed 41 | 50 50 42 37 37 37 Slowest Speed 50 | 50 50 50 37 37 37 Overloaded Moves . | . . . . . . Propulsion Burnouts . | . . . . . . Robots Hopped 12 | . . 1 1 9 1 Potential Cave-ins . | . . . . . . Cave-ins Triggered . | . . . . . . Exploration Rate (%) 22 | 3 18 74 11 25 6 Regions Visited 5 Branch Regions 2 Pre-discovered Areas . | . . . . . . Known Exits Taken 1 | . . . . 1 . Unknown Exits Taken 4 | 1 1 1 1 . . Scrap Searched . | . . . . . . Spaces Dug . | . . . . . . Terrain Destroyed . | . . . . . . Melee . | . . . . . . Projectile . | . . . . . . AOE . | . . . . . . Terrain Rammed . | . . . . . . Walls Destroyed . | . . . . . . Machines Disabled . | . . . . . . Actions | -11 -10 -10 -9 -9 -8 --------- Run | Yrd Mat Min Mat Min Mat Total 1211 | 21 61 375 70 583 101 Wait 439 | . . 33 4 365 37 Move 689 | 19 61 319 55 189 46 Hop 12 | . . 1 1 9 1 Pick Up . | . . . . . . Fast Attach 5 | 2 . 2 1 . . Attach . | . . . . . . Detach . | . . . . . . Swap 5 | . . 1 2 2 . Drop 4 | . . . 2 2 . Fire 54 | . . 19 4 14 17 Melee . | . . . . . . Ram . | . . . . . . Kick . | . . . . . . Crush . | . . . . . . Escape Stasis . | . . . . . . Rewire . | . . . . . . Trap . | . . . . . . Miscellaneous 3 | . . . 1 2 . Route ------- -11/Scrapyard -10/Materials -10/Mines -9/Materials (discovered 2 exits: Mat / [*Min]) -9/Mines -8/Materials History --------- Turn | Location | Event 1 | -11/Scrapyard | Upgraded with Propulsion slot (x1) 1 | -11/Scrapyard | Upgraded with Weapon slot (x1) 8 | -11/Scrapyard | Discovered new exit (range 14) 14 | -11/Scrapyard | Entered Materials 38 | -10/Materials | Discovered new exit (range 15) 45 | -10/Materials | Entered Mines 180 | -10/Mines | Learned 2 Materials zone layouts 264 | -10/Mines | Discovered new exit (range 14) 271 | -10/Mines | Entered Materials 272 | -9/Materials | Identified exit to Materials 273 | -9/Materials | Reached level 2 307 | -9/Materials | Discovered new exit (range 15) 312 | -9/Materials | Entered Mines 314 | -9/Mines | Reached level 3 340 | -9/Mines | Assembled infested the area 367 | -9/Mines | Core integrity fell below 50% 604 | -9/Mines | Build established: Scavenger-Mutant 786 | -9/Mines | Learned location of 1 exit from Lower Caves 791 | -9/Mines | Discovered exit to Materials (range 12) 795 | -9/Mines | Entered Materials 796 | -8/Materials | Core integrity fell below 50% 797 | -8/Materials | Reached level 4 870 | -8/Materials | Core integrity fell below 20% 893 | -8/Materials | Destroyed by G-50 Soldier with Heavy Laser Last Messages --------------- Dropped Flight Unit. Acquired 34 matter. Acquired derelict log, extracted data. Data stored: Lower Caves exits (x1). C-30 ARC bursts open, deploying its payload. D-53 Grenadier unfolds itself. EXIT=FOUND: MATERIALS LOCATION=MATERIALS GOAL=ESCAPE O-16 Technician suffers critical hit (Destroy). Destroyed Hover Unit. O-16 Technician: "IFF HANDSHAKE FAILED. SECURING TERMINAL." Reached level 4. ALERT: Hostiles spotted, dispatching reinforcements to Terminal M008. ALERT: Hostiles spotted, dispatching reinforcements to Terminal M006. Y-45 Defender destroyed. Acquired 12 matter. K-01 Serf collects debris. Lgt. Ion Engine destroyed. K-01 Serf collects debris. Map ----- +----------------------------------------------------+ | ???????????????????# # #??????????????????? | | ???????????????????# """ # #??????????????????? | | ???????????????????#= """ + ##########?????????? | | ???????????????????# """ # # #?????????? | | ???????????????????#[ # # #?????????? | | ???????????????????# ! # # #?????????? | | ???????????????????######## # *#?????????? | | ??????????????????????????# # #?????????? | | ??????????????####????????# =!#![[] #?????????? | | ??????????????# ####### =%+%[= #?????????? | | ??????????????# *#![] #?????????? | | ??????????????+ # #?????????? | | ??????????????# ##########?????????? | | ??????????????# ########+#####???????????????? | | ??????????????## ??????#[ #???????????????? | | ????????????????????????# """ #???????????????? | | ????????????????????????# """ #???????????????? | | ????????????????????????# """ #???????????????? | | ????????????????????????# #???????????????? | | ????????????????????????# """ #???????????????? | | ????????????????????????# """ #???????????????? | | ????????????????????????# """ #???????????????? | | ????????????????????????# #???????????????? | | ????????????????????????#+########???????????????? | | ????????????????????????# gg ????????? | | ????????????????????????#@########???????????????? | | ????????????????????????# #??????????????????????? | | ????????????????????????# #??????????????????????? | | ????????????????????????# #??????????????????????? | | ???????????????????????? ??????????????????????? | | ???????????????????????? o??????????????????????? | | ???????????????????????? ??????????????????????? | | ????????????????????????###??????????????????????? | | ?????????????????????????????????????????????????? | | ?????????????????????????????????????????????????? | | ?????????????????????????????????????????????????? | | ?????????????????????????????????????????????????? | | ?????????????????????????????????????????????????? | | ?????????????????????????????????????????????????? | | ?????????????????????????????????????????????????? | | ?????????????????????????????????????????????????? | | ?????????????????????????????????????????????????? | | ?????????????????????????????????????????????????? | | ?????????????????????????????????????????????????? | | ?????????????????????????????????????????????????? | | ?????????????????????????????????????????????????? | | ?????????????????????????????????????????????????? | | ?????????????????????????????????????????????????? | | ?????????????????????????????????????????????????? | | ?????????????????????????????????????????????????? | +----------------------------------------------------+ Best States ------------- Heat Dissipation 25 Energy Generation 10 Energy Capacity 125 Matter Stores 300 Matter Capacity 300 Sight Range 16 Terrain Scan Density 10 Evasion (%) 62 Item Schematics ----------------- None Robot Schematics ------------------ None Fabricated ------------ Nothing Repaired ---------- Nothing Alien Tech Used ----------------- None Achievements -------------- None Challenges ------------ None RPGLIKE | -11 -10 -10 -9 -9 -8 --------- Run | Yrd Mat Min Mat Min Mat Levels Raised 3 | . . . 1 1 1 XP Earned 8350 | 3000 . 1100 1750 850 1650 XP Spent 1000 | 1000 . . . . . Upgrades 2 | 2 . . . . . Propulsion Slot 1 | 1 . . . . . Weapon Slot 1 | 1 . . . . . Protomatter Created 35 | . . 15 8 12 . Integrity Restored 60 | . . . 24 36 . Core 60 | . . . 24 36 . Protomatter Decayed 114 | . . . . 114 . Game ------ Seed SpectralArmorRailcannon Manual? 0 Play Time 00:05:44 Cumulative 261.1 hours Start 2025.06.06 @ 17:41:49 End 2025.06.06 @ 17:47:43 Sessions 1 Manual Loads 0 Difficulty Rogue Special Mode Winter2019/RPGLIKE Game No. 265 Rogue 76 Adventurer 177 Explorer 12 Win Type - Total 65 Types 19/1/16/2/12/0/4/5/0/6 Lore% 54 Gallery% 53 Achievement% 71 Wizard Run 0 Options --------- Layout 0 ASCII 0 Keyboard 0 Movement Numpad Keybinds 0 Fullscreen 2 Font 12/Smallcaps Map View 83x54 Zoom Use 0% Tactical HUD 0 Map Filters NONE Filters NONE Steam 1 RUN: 0771363f-73fe-48aa-be03-56fdbb08d0dd